fUSD/lending_fUSD_20240617
["ID","MTS","AMOUNT","RATE_DAILY","PERIOD"]
[329727963,1718621382724,-150.0,9.501e-05,2]
[329727964,1718621382831,-150.0,9.501e-05,2]
[329727965,1718621382899,-150.0,9.501e-05,2]
[329727966,1718621383098,-154.89411138,9.501e-05,2]
[329727967,1718621386028,-98.92521481,9.501e-05,2]
[329727968,1718621386071,-154.42982958,9.501e-05,2]
[329727969,1718621389119,1626.79604652,9.5e-05,2]
[329727970,1718621389292,2339.46926962,9.5e-05,2]
[329727971,1718621391933,307.79443704,9.5e-05,2]
[329727972,1718621393412,600.0,9.001e-05,2]
[329727973,1718621395021,2010.26480606,9.5e-05,2]
[329727974,1718621395079,815.61152163,9.5e-05,2]
[329727975,1718621396242,1200.00000001,9.475e-05,2]
[329727976,1718621396386,162.83666583,9.5e-05,2]
[329727977,1718621397708,155.0,9.5e-05,2]
[329727978,1718621398088,3104.08951169,9.5e-05,2]
[329727979,1718621400070,626.52054052,9.474e-05,2]
[329727980,1718621402541,150.0,9.475e-05,2]
[329727981,1718621402766,248.69147384,9.475e-05,2]
[329727982,1718621403146,627.72947824,7.106e-05,2]
[329727983,1718621404523,339.37755264,9.5e-05,2]
[329727984,1718621406675,235.40449572,9.5e-05,2]
[329727985,1718621407048,241.90249194,9.5e-05,2]
[329727986,1718621411577,659.76455465,9.5e-05,2]
[329727987,1718621413448,365.8342231,9.5e-05,2]
[329727988,1718621417631,1067.23749019,9.5e-05,2]
[329727989,1718621417843,194.94202655,9.5e-05,2]
[329727990,1718621417925,646.5329412,9.5e-05,2]
[329727991,1718621419710,8430.1525627,9.5e-05,2]
[329727992,1718621428602,155.0,9.5e-05,2]
[329727993,1718621428943,573.37246955,9.5e-05,2]
[329727994,1718621429302,495.51354358,9.5e-05,2]
[329727995,1718621429605,193.34886011,9.5e-05,2]
[329727996,1718621432957,532.14539917,9.5e-05,2]
[329728004,1718621434527,-499.07405688,9.501e-05,2]
[329728005,1718621434550,-2415.81459763,9.501e-05,2]
[329728006,1718621434568,-408.07846027,9.501e-05,2]
[329728007,1718621434583,-5589.44149372,9.503e-05,2]
[329728008,1718621434600,-150.0,9.514e-05,2]
[329728009,1718621434611,-150.0,9.534e-05,2]
[329728010,1718621434626,-2234.55230294,9.714e-05,2]
[329728011,1718621434643,-205.31,9.714e-05,2]
[329728012,1718621434659,-499.99,9.714e-05,2]
[329728013,1718621434674,-999.99,9.714e-05,2]
[329728014,1718621434690,-7551.86620162,9.728e-05,2]
[329728015,1718621434722,-546.46139874,9.73e-05,2]
[329728016,1718621434741,-538.4252942,9.737e-05,2]
[329728017,1718621434764,-206.22984294,0.00010691,2]
[329728018,1718621434781,-250.0,0.00010692,2]
[329728019,1718621434818,-793.32705461,0.00010695,2]
[329728020,1718621434836,-1629.4,0.00010734,2]
[329728021,1718621434848,-250.0,0.00010753,2]
[329728022,1718621434859,-23890.0,0.00010754,2]
[329728023,1718621434875,-192.13,0.00010792,2]
[329728024,1718621434892,-6072.57,0.00010811,2]
[329728025,1718621434908,-360.0,0.0001083,2]
[329728026,1718621434928,-3532.464,0.00010959,2]
[329728027,1718621434939,-386.71,0.00011068,2]
[329728028,1718621434951,-360.0,0.00012184,2]
[329728029,1718621434962,-288.53608772,0.000125,2]
[329728030,1718621434979,-44574.15162713,0.0001298,2]
[329728031,1718621434991,-1687.89533635,0.00013,2]
[329728032,1718621435002,-386.71,0.00013331,2]
[329728033,1718621435012,-1629.4,0.00013473,2]
[329728034,1718621435022,-360.0,0.00013538,2]
[329728035,1718621435073,-217.46,0.00013699,2]
[329728036,1718621435084,-595.76,0.00013699,2]
[329728037,1718621435097,-10100.6858,0.000138,2]
[329728038,1718621435123,-8435.4094,0.000139,2]
[329728039,1718621435137,-223.1447,0.000139,2]
[329728040,1718621435152,-486.3734,0.000139,2]
[329728041,1718621435164,-351.90923059,0.00013943,2]
[329728042,1718621435176,-843.56327937,0.00013943,2]
[329728043,1718621435202,-3916.83805187,0.00013943,2]
[329728044,1718621435213,-322.42616488,0.00013943,2]
[329728045,1718621435223,-306.12281732,0.00013943,2]
[329728046,1718621435237,-1047.26085121,0.00013943,2]
[329728047,1718621435250,-347.48,0.0001399,3]
[329728048,1718621435265,-372.77762597,0.00013998,2]
[329728049,1718621435279,-2352.21027768,0.00013998,2]
[329728050,1718621435289,-495.80732436,0.00013998,2]
[329728051,1718621435302,-441.78663197,0.00013998,2]
[329728052,1718621435315,-162.89428284,0.00013998,2]
[329728053,1718621435331,-2512.4631222,0.00013998,2]
[329728054,1718621435345,-213.02610233,0.00013998,2]
[329728055,1718621435376,-155.0,0.00013998,2]
[329728056,1718621435390,-3098.85751179,0.00013998,2]
[329728057,1718621435408,-625.67831655,0.00013998,2]
[329728058,1718621435421,-254.88308596,0.00013998,2]
[329728059,1718621435434,-326.01348402,0.00013998,2]
[329728060,1718621435471,-346.25841995,0.00013998,2]
[329728061,1718621435494,-365.20633358,0.00013998,2]
[329728062,1718621435507,-419.81103,0.00013998,2]
[329728063,1718621435528,-340.52076322,0.00013999,2]
[329728064,1718621435547,-913255.89172352,0.00014,2]
[329728066,1718621435950,-27826.70657209,0.00014,2]
[329728067,1718621436065,-13146.133,0.00014,2]
[329728075,1718621439614,-150.0,0.00011489,2]
[329728076,1718621439643,-286.15837723,0.000139,2]
[329728077,1718621439855,-669.168,0.000139,2]
[329728078,1718621441158,-10787.92402277,0.000139,2]
[329728079,1718621441171,-1262.17951674,0.00013998,2]
[329728080,1718621441188,-445.6468215,0.00013998,2]
[329728081,1718621441214,-4072.83076848,0.00013999,2]
[329728082,1718621441231,-17902.42704994,0.00014,2]
[329728085,1718621441464,-120292.6007004,0.00014,2]
[329728092,1718621444206,-779.38627714,0.00013998,2]
[329728095,1718621444218,-1382.24430186,0.00014,2]
[329728123,1718621445464,-192.97088509,0.00013999,2]
[329728125,1718621445485,-3826.12039453,0.00014,2]
[329728127,1718621445501,-315.6,0.00014,2]
[329728129,1718621445516,-6276.30471842,0.00014,2]
[329728131,1718621445533,-3580.78588787,0.00014,2]
[329728133,1718621445557,-2351.54894904,0.00014,2]
[329728135,1718621445573,-344.447979,0.00014,2]
[329728136,1718621445588,-807.50002,0.00014,2]
[329728141,1718621445866,-2693.90196,0.00014,2]
[329728142,1718621446157,-155.0,0.00013999,2]
[329728143,1718621446176,-227.60523184,0.00014,2]
[329728144,1718621446580,-93875.19257038,0.00014,2]
[329728159,1718621449214,-312.26304953,0.00013999,2]
[329728160,1718621449270,-256.10833297,0.00013999,2]
[329728161,1718621449295,-206.6339799,0.00013999,2]
[329728162,1718621449322,-212.92309253,0.00014,2]
[329728163,1718621449579,-784.45745727,0.00014,2]
[329728164,1718621449615,-358.54738649,0.00014,2]
[329728165,1718621449628,-1913.60066779,0.00014,2]
[329728166,1718621449642,-8571.89705668,0.00014,2]
[329728167,1718621450054,-14128.95173612,0.00014,2]
[329728168,1718621450070,-379.44033928,0.00014,2]
[329728169,1718621450327,-258.86411926,0.00014,2]
[329728170,1718621450347,-397.7896758,0.00014,2]
[329728171,1718621450361,-1432.4982958,0.00014,2]
[329728172,1718621450396,-2953.82764984,0.00014,2]
[329728174,1718621450684,-480.16982061,0.00014,2]
[329728176,1718621450697,-2448.97318394,0.00014,2]
[329728178,1718621450710,-2924.54894197,0.00014,2]
[329728180,1718621450725,-1077.15225315,0.00014,2]
[329728182,1718621450741,-1125.17641009,0.00014,2]
[329728184,1718621450756,-517.70657347,0.00014,2]
[329728187,1718621450770,-42300.23100674,0.00014,2]
[329728193,1718621451072,-2176.24959874,0.00014,2]
[329728194,1718621451093,-263.96713403,0.00014,2]
[329728195,1718621451136,-796.10842129,0.00014,2]
[329728196,1718621451155,-639.89586961,0.00014,2]
[329728197,1718621451170,-1689.5237734,0.00014,2]
[329728201,1718621451641,-16251.50482303,0.00014,2]
[329728202,1718621463805,8778.99219714,9.5e-05,2]
[329728203,1718621463846,10000.0,9.5e-05,2]
[329728205,1718621577724,643.77,0.00021839,30]
[329728212,1718622033945,436.10026868,0.000251,30]
[329728213,1718622145491,590.12,0.00021589,30]
[329728216,1718622238632,-155.0,9.497e-05,2]
[329728217,1718622238679,-1262.17951674,9.497e-05,2]
[329728218,1718622238714,-886.64940994,9.498e-05,2]
[329728219,1718622238795,-3618.80772228,9.5e-05,2]
[329728221,1718622278206,4077.36335104,9.5e-05,2]
[329728222,1718622278248,10000.0,9.5e-05,2]
[329728223,1718622278297,10000.0,9.5e-05,2]
[329728230,1718622578577,-150.0,9.499e-05,2]
[329728245,1718622633717,-331.13858055,9.499e-05,2]
[329728250,1718622635051,-17.89354326,9.499e-05,2]
[329728251,1718622635077,-300.0,9.499e-05,2]
[329728252,1718622635092,-15922.63664895,9.5e-05,2]
[329728253,1718622635107,-363.26147488,9.5e-05,2]
[329728254,1718622635532,-420.0,0.00010449,2]
[329728255,1718622635564,-587.0,0.00011494,2]
[329728256,1718622635629,-1262.17951674,0.00012597,2]
[329728257,1718622635657,-424.00540404,0.00012598,2]
[329728258,1718622635669,-433.0,0.00012643,2]
[329728259,1718622635681,-367.37,0.00013387,2]
[329728260,1718622635694,-4492.5418,0.000139,2]
[329728261,1718622635705,-164.9212,0.000139,2]
[329728262,1718622635717,-171.39309846,0.000139,2]
[329728263,1718622635732,-175.25547107,0.000139,2]
[329728264,1718622635745,-211.8466,0.000139,2]
[329728265,1718622635760,-180.83664651,0.000139,2]
[329728266,1718622635771,-196.22056065,0.000139,2]
[329728267,1718622635782,-2500.0,0.000139,2]
[329728268,1718622635793,-1951.4846,0.000139,2]
[329728269,1718622635810,-6711.8566,0.000139,2]
[329728270,1718622635823,-157.72862368,0.00013943,2]
[329728271,1718622635840,-499.99,0.00013943,2]
[329728272,1718622635852,-4359.28947643,0.00013974,2]
[329728273,1718622635866,-206.41177244,0.00013998,2]
[329728274,1718622635882,-207.87759516,0.00013998,2]
[329728275,1718622635894,-2127.5432517,0.00013998,2]
[329728276,1718622635905,-3845.88360665,0.00013998,2]
[329728277,1718622635919,-263.62990129,0.00013998,2]
[329728278,1718622635935,-311.97360493,0.00013998,2]
[329728279,1718622635952,-179.8783529,0.00013998,2]
[329728280,1718622635966,-2913.96021865,0.00013999,2]
[329728281,1718622635988,-526822.3136482,0.00014,2]
[329728283,1718622639945,-204.08187822,0.000139,2]
[329728284,1718622639958,-1391.02724365,0.000139,2]
[329728285,1718622639989,-6559.89087813,0.00014,2]
[329728286,1718622640018,-6595.499672,0.00014,2]
[329728316,1718622645377,-854.81401101,0.00014,2]
[329728336,1718622647610,-499.03212381,0.00013999,2]
[329728337,1718622647629,-47189.83301423,0.00014,2]
[329728342,1718622648116,-330.64417169,0.00014,2]
[329728348,1718622648214,-271.34876953,0.00014,2]
[329728383,1718622649470,-368987.39761903,0.00014,2]
[329728411,1718622650199,-303.9189246,0.00014,2]
[329728412,1718622662458,-150.0,9.498e-05,2]
[329728413,1718622663178,-150.0,9.498e-05,2]
[329728414,1718622667285,-150.0,9.499e-05,2]
[329728415,1718622668831,-150.0,9.499e-05,2]
[329728416,1718622669879,-150.0,9.499e-05,2]
[329728417,1718622737751,540.94,0.00021589,30]
[329728419,1718622794070,200.0,0.0002744,120]
[329728424,1718623372594,495.86,0.00021589,30]
[329728426,1718623656527,1262.17951674,0.00013688,2]
[329728448,1718623834210,-259.99573651,0.00013691,2]
[329728449,1718623834224,-532.59438089,0.00013692,2]
[329728450,1718623834250,-609.67999998,0.00013692,2]
[329728451,1718623834269,-119.90513587,0.00013692,2]
[329728452,1718623834283,-330.09486413,0.00013696,2]
[329728453,1718623834302,-926.58736628,0.00013696,2]
[329728454,1718623834385,-732.91429086,0.00013696,2]
[329728455,1718623834440,-2074.93567873,0.00013696,2]
[329728456,1718623834453,-461.48454036,0.00013784,2]
[329728457,1718623834504,-1658.29684223,0.00013796,2]
[329728458,1718623834662,-3132.41857615,0.00013796,2]
[329728459,1718623834697,-11371.12958162,0.00013796,2]
[329728460,1718623834709,-5305.8187,0.000138,2]
[329728461,1718623834752,-211.8466,0.000138,2]
[329728462,1718623834794,-2684.6859,0.000139,2]
[329728463,1718623834812,-100000.0,0.000139,2]
[329728464,1718623834833,-1000.0,0.000139,2]
[329728465,1718623834845,-500.0,0.000139,2]
[329728466,1718623834861,-127349.90806135,0.000139,2]
[329728467,1718623835530,-3185.94146673,0.000139,2]
[329728469,1718623835924,-825.99999941,0.000139,2]
[329728484,1718623839625,-4839.31245184,0.000139,2]
[329728485,1718623839648,-402.63486542,0.000139,2]
[329728486,1718623840564,-7595.91145525,0.000139,2]
[329728487,1718623840579,-175.25547105,0.000139,2]
[329728488,1718623840608,-196.22056064,0.000139,2]
[329728489,1718623840621,-322.85509788,0.000139,2]
[329728490,1718623840645,-159.05435534,0.00013999,2]
[329728491,1718623840688,-2294.61931324,0.00014,2]
[329728492,1718623840707,-381.33465368,0.00014,2]
[329728493,1718623840723,-1530.03477773,0.00014,2]
[329728494,1718623840749,-4070.08297907,0.00014,2]
[329728495,1718623841119,-1512.690657,0.00014,2]
[329728496,1718623841132,-17452.26548079,0.00014,2]
[329728497,1718623841148,-669.22858176,0.00014,2]
[329728498,1718623841542,-1056.95876971,0.00014,2]
[329728499,1718623841557,-487.472004,0.00014,2]
[329728501,1718623842013,-548.518,0.00014,2]
[329728502,1718623842031,-537.22222227,0.00014,2]
[329728503,1718623842045,-1814.56851,0.00014,2]
[329728505,1718623842712,-308148.20983776,0.00014,2]
[329728506,1718623842961,-921.23161554,0.00014,2]
[329728512,1718623844013,-4787.60845591,0.00014,2]
[329728514,1718623844037,-866.0,0.00014,2]
[329728516,1718623844067,-269.54288353,0.00014,2]
[329728526,1718623845371,-6973.38564092,0.00014,2]
[329728531,1718623845692,-20015.12849586,0.00014,2]
[329728532,1718623846320,-553233.03373553,0.00014,2]
[329728533,1718623846813,-17946.5494191,0.00014,2]
[329728536,1718623849630,-531.405,0.00014,2]
[329728558,1718623966155,454.53,0.00021589,30]
[329728565,1718623994439,200.0,0.0002745,120]
[329728573,1718624067227,267.62549217,0.00013688,2]
[329728577,1718624085021,526.00095333,0.00013688,2]
[329728578,1718624088700,1278.63374008,0.00013688,2]
[329728579,1718624088814,787.27907737,0.00013688,2]
[329728580,1718624096731,283.28614578,0.00013688,2]
[329728581,1718624099384,594.99507453,0.00013688,2]
[329728582,1718624099483,456.0,0.00013688,2]
[329728587,1718624158594,-679.37218079,0.00013685,2]
[329728588,1718624158626,-920.67319394,0.00013686,2]
[329728589,1718624158670,-430.21413812,0.00013686,2]
[329728590,1718624158725,-296.20867588,0.00013686,2]
[329728591,1718624158757,-259.99573651,0.00013687,2]
[329728592,1718624158810,-155.0,0.00013687,2]
[329728593,1718624158851,-211.18444221,0.00013688,2]
[329728594,1718624158904,-1233.04071884,0.00013799,2]
[329728595,1718624158966,-300.0,0.00013799,2]
[329728596,1718624159043,-500.0,0.000138,2]
[329728597,1718624159094,-99049.522,0.000138,2]
[329728598,1718624159145,-1482.3676,0.000138,2]
[329728599,1718624159194,-1109.54373,0.0001386,2]
[329728600,1718624159358,-19484.77441003,0.00013898,2]
[329728601,1718624159433,-5753.244691,0.000139,2]
[329728602,1718624159493,-1000.0,0.000139,2]
[329728603,1718624159550,-4918.54598744,0.000139,2]
[329728604,1718624159610,-1000.0,0.000139,2]
[329728605,1718624159698,-2500.0,0.000139,2]
[329728606,1718624159772,-1189.05020578,0.00013964,2]
[329728607,1718624159814,-267.01030342,0.00013998,2]
[329728608,1718624159870,-281.79659326,0.00013998,2]
[329728609,1718624160001,-792.95525726,0.00013998,2]
[329728610,1718624160050,-479.50035021,0.00013998,2]
[329728611,1718624160187,-1058.05132004,0.00013998,2]
[329728612,1718624160325,-282.86198065,0.00013998,2]
[329728613,1718624160377,-209.23301289,0.00013999,2]
[329728614,1718624160632,-5903.55757461,0.00013999,2]
[329728615,1718624160703,-478252.29589712,0.00014,2]
[329728616,1718624161664,-152.22799185,0.00013998,2]
[329728617,1718624161928,-132.48735922,0.00013998,2]
[329728618,1718624162013,-19.74063175,0.00014,2]
[329728625,1718624502524,416.65,0.00021589,30]
[329728661,1718625033843,-8231.62669057,0.00010594,2]
[329728666,1718625035900,-2297.03259394,0.00010594,2]
[329728667,1718625035923,-2061.38555232,0.00010595,2]
[329728668,1718625035944,-312.14497506,0.00010595,2]
[329728669,1718625035959,-259.99573651,0.00010595,2]
[329728670,1718625035973,-1262.17951674,0.00010595,2]
[329728671,1718625035986,-253.92599679,0.00010596,2]
[329728672,1718625035998,-364.50139533,0.00010596,2]
[329728673,1718625036012,-253.6993498,0.00010597,2]
[329728674,1718625036024,-161.05154284,0.00010598,2]
[329728675,1718625036037,-547.0,0.00010699,2]
[329728676,1718625036049,-150.0,0.00010705,2]
[329728677,1718625036061,-169.71,0.00010726,2]
[329728678,1718625036074,-648.49,0.00010754,2]
[329728679,1718625036109,-150.99,0.00011763,2]
[329728680,1718625036124,-210.0,0.00011775,2]
[329728681,1718625036167,-1000.0,0.00012091,2]
[329728682,1718625036182,-150.0,0.00012167,2]
[329728683,1718625036200,-250.0,0.00012183,2]
[329728684,1718625036233,-453.76515583,0.00012458,2]
[329728685,1718625036245,-66.03088617,0.00012458,2]
[329728701,1718625039783,-433.95911383,0.00012458,2]
[329728702,1718625039827,-2402.8080329,0.0001257,2]
[329728703,1718625039856,-299.14285828,0.0001257,2]
[329728704,1718625039964,-1041.17147669,0.0001257,2]
[329728705,1718625039984,-2288.25763213,0.0001257,2]
[329728706,1718625039995,-2101.2910924,0.00012585,2]
[329728707,1718625040030,-92.3989076,0.00012585,2]
[329728708,1718625040061,-255.82296945,0.00012598,2]
[329728709,1718625040078,-190.78195439,0.00012641,2]
[329728710,1718625040098,-309.21804561,0.00012641,2]
[329728711,1718625040137,-388.55581975,0.00012659,2]
[329728712,1718625040328,-104.14418025,0.00012659,2]
[329728713,1718625040357,-250.0,0.00012712,2]
[329728714,1718625040376,-799.99438155,0.00012834,2]
[329728715,1718625040499,-4299.49561845,0.00012834,2]
[329728716,1718625040515,-236.51,0.00012969,2]
[329728717,1718625040534,-648.49,0.00013018,2]
[329728718,1718625040560,-499.99,0.00013018,2]
[329728719,1718625040574,-1225.82,0.00013051,2]
[329728720,1718625040595,-337.57,0.00013381,2]
[329728721,1718625040619,-4885.97224268,0.00013409,2]
[329728722,1718625040683,-19014.02775732,0.00013409,2]
[329728723,1718625040697,-162.91,0.00013508,2]
[329728724,1718625040721,-6314.4332,0.00013591,2]
[329728725,1718625040733,-1000.0,0.00013602,2]
[329728726,1718625040753,-154.64,0.00013699,2]
[329728727,1718625040780,-717.63,0.00013699,2]
[329728728,1718625040793,-162.91,0.00013742,2]
[329728729,1718625040825,-758.24390293,0.000139,2]
[329728730,1718625040837,-537.28157027,0.000139,2]
[329728731,1718625040866,-171.74382357,0.000139,2]
[329728732,1718625040892,-169.24790698,0.000139,2]
[329728733,1718625040904,-1705.50327428,0.000139,2]
[329728734,1718625040916,-322.85509786,0.000139,2]
[329728735,1718625040927,-1449.9018818,0.000139,2]
[329728736,1718625040942,-174.98775606,0.000139,2]
[329728737,1718625040962,-162.91,0.00013977,2]
[329728738,1718625040995,-150.0,0.00013992,2]
[329728739,1718625041010,-307.70579132,0.00013998,2]
[329728740,1718625041056,-435.37223481,0.00013998,2]
[329728741,1718625041086,-811.17819731,0.00013998,2]
[329728742,1718625041109,-150.99,0.00013998,2]
[329728743,1718625041120,-159.15563279,0.00013998,2]
[329728744,1718625041171,-156.14015137,0.00013998,2]
[329728745,1718625041190,-209.23301289,0.00013999,2]
[329728747,1718625041233,-5903.55757461,0.00013999,2]
[329728749,1718625041259,-13273.99862182,0.00014,2]
[329728770,1718625042907,-315.94284856,0.00014,2]
[329728771,1718625042926,-57720.11913066,0.00014,2]
[329728772,1718625043469,-287.56989169,0.00014,2]
[329728773,1718625043485,-386.4474243,0.00014,2]
[329728783,1718625044098,-375.38893534,0.00014,2]
[329728784,1718625044741,-409.28413216,0.00014,2]
[329728785,1718625044762,-1275.80352865,0.00014,2]
[329728786,1718625044948,-209.23301289,0.00013999,2]
[329728787,1718625044983,-729551.17920258,0.00014,2]
[329728788,1718625044995,-752.58503271,0.00014,2]
[329728789,1718625045016,-2057730.65209515,0.00014,2]
[329728790,1718625045038,-2837.96888,0.00014,2]
[329728791,1718625045060,-162.91,0.00014212,2]
[329728792,1718625045083,-172.42,0.00014531,2]
[329728793,1718625045102,-250.0,0.0001454,2]
[329728794,1718625045123,-1612.0,0.00014648,2]
[329728795,1718625045140,-3457.0738529,0.00015,2]
[329728796,1718625045162,-621.96055235,0.00015,2]
[329728797,1718625045175,-1000.0,0.00015,2]
[329728798,1718625045198,-1884580.61902533,0.00015,2]
[329728799,1718625045211,-350.78852168,0.00015088,2]
[329728800,1718625045228,-4918.54598741,0.00015109,2]
[329728801,1718625045253,-1000.0,0.00015113,2]
[329728802,1718625045267,-648.49,0.00015282,2]
[329728803,1718625045280,-5099.49,0.00015574,2]
[329728804,1718625045293,-1705.50327426,0.000158,2]
[329728805,1718625045318,-172.15,0.00015831,2]
[329728806,1718625045332,-800.0,0.00016,2]
[329728807,1718625045356,-2881.50283211,0.00016192,2]
[329728808,1718625045379,-4918.54598741,0.00016318,2]
[329728809,1718625045396,-154.64,0.00016438,2]
[329728810,1718625045415,-1267.98,0.00016438,2]
[329728811,1718625045440,-1808.63946267,0.000165,2]
[329728812,1718625045462,-1000.0,0.00016625,2]
[329728813,1718625045480,-172.15,0.00017137,2]
[329728814,1718625045508,-2476.0,0.000172,2]
[329728815,1718625045559,-709.0,0.000172,2]
[329728816,1718625045580,-4918.54598741,0.00017527,2]
[329728817,1718625045613,-648.49,0.00017546,2]
[329728818,1718625045636,-328.054,0.00017588,2]
[329728820,1718625045660,-172.42,0.00017615,2]
[329728822,1718625045681,-328.054,0.00017667,2]
[329728824,1718625045694,-1705.50327426,0.000177,2]
[329728826,1718625045716,-328.054,0.00017748,2]
[329728828,1718625045737,-328.054,0.00017829,2]
[329728830,1718625045752,-328.054,0.0001791,2]
[329728831,1718625045766,-328.054,0.00017993,2]
[329728833,1718625045780,-328.054,0.00018076,2]
[329728835,1718625045798,-1000.0,0.00018136,2]
[329728837,1718625045836,-328.054,0.0001816,2]
[329728839,1718625045858,-697.0,0.00018233,2]
[329728841,1718625045874,-328.054,0.00018245,2]
[329728843,1718625045946,-5099.49,0.00018313,2]
[329728844,1718625045977,-328.054,0.0001833,2]
[329728845,1718625045991,-172.15,0.00018444,2]
[329728847,1718625046044,-4918.54598741,0.00018736,2]
[329728848,1718625046078,-941.97309292,0.00019,2]
[329728849,1718625046116,-2837.96889,0.00019,2]
[329728850,1718625046144,-500.0,0.00019178,2]
[329728851,1718625046166,-435.79386093,0.00019178,2]
[329728852,1718625046202,-500.0,0.00019178,2]
[329728853,1718625046286,-500.0,0.00019178,2]
[329728854,1718625046309,-500.0,0.00019178,2]
[329728855,1718625046332,-500.0,0.00019178,2]
[329728856,1718625046344,-500.0,0.00019178,2]
[329728857,1718625046377,-500.0,0.00019178,2]
[329728858,1718625046396,-406.96680924,0.00019178,2]
[329728859,1718625046408,-544.87384717,0.00019178,2]
[329728860,1718625046420,-500.0,0.00019178,2]
[329728861,1718625046434,-394.39707079,0.00019178,2]
[329728862,1718625046446,-500.0,0.00019178,2]
[329728863,1718625046460,-500.0,0.00019178,2]
[329728864,1718625046481,-500.0,0.00019178,2]
[329728865,1718625046493,-500.0,0.00019178,2]
[329728866,1718625046524,-500.0,0.00019178,2]
[329728867,1718625046545,-500.0,0.00019178,2]
[329728868,1718625046576,-500.0,0.00019178,2]
[329728869,1718625046589,-500.0,0.00019178,2]
[329728870,1718625046642,-339.17741633,0.00019178,2]
[329728871,1718625046659,-500.0,0.00019178,2]
[329728872,1718625046679,-3147.7,0.00019178,2]
[329728873,1718625046715,-717.63,0.00019178,2]
[329728874,1718625046735,-767.38,0.00019178,2]
[329728875,1718625046796,-1705.50327426,0.000196,2]
[329728876,1718625046814,-151.0,0.00019728,2]
[329728877,1718625046844,-648.49,0.0001981,2]
[329728878,1718625046869,-4918.54598741,0.00019945,2]
[329728879,1718625046885,-187.8134191,0.0002,2]
[329728880,1718625046926,-1562.01588759,0.0002,2]
[329728883,1718625046957,-261.03986445,0.0002,2]
[329728884,1718625047225,-155.0,0.0002,2]
[329728885,1718625047251,-326.51670572,0.0002,2]
[329728886,1718625047279,-188.49748127,0.0002,2]
[329728887,1718625047312,-5564.33552664,0.0002,2]
[329728888,1718625047324,-3899.00703512,0.00020039,2]
[329728889,1718625047352,-226.83513534,0.000201,2]
[329728890,1718625047370,-172.22,0.00020548,2]
[329728891,1718625047394,-322.85509786,0.0002055,2]
[329728892,1718625047406,-1449.90188179,0.0002055,2]
[329728893,1718625047439,-151.0,0.00020796,2]
[329728894,1718625047452,-177.56,0.00021012,2]
[329728895,1718625047466,-11743.0,0.000211,5]
[329728896,1718625047479,-4918.54598741,0.00021155,2]
[329728897,1718625047493,-1705.50327426,0.000215,2]
[329728898,1718625047511,-316.56325385,0.00021588,2]
[329728899,1718625047523,-1044.08069424,0.00021589,2]
[329728900,1718625047534,-250.80314776,0.00021589,2]
[329728901,1718625047546,-392.083845,0.00021644,2]
[329728902,1718625047559,-170.33,0.00021685,2]
[329728903,1718625047570,-151.0,0.00021865,2]
[329728904,1718625047582,-1000.0,0.0002189,2]
[329728905,1718625047603,-1000.0,0.0002189,2]
[329728906,1718625047622,-1000.0,0.0002189,2]
[329728907,1718625047635,-1000.0,0.0002189,2]
[329728908,1718625047653,-1000.0,0.0002189,2]
[329728909,1718625047667,-1000.0,0.0002189,2]
[329728910,1718625047679,-1000.0,0.0002189,2]
[329728911,1718625047692,-1000.0,0.0002189,2]
[329728912,1718625047711,-1000.0,0.0002189,2]
[329728913,1718625047727,-1000.0,0.0002189,2]
[329728914,1718625047740,-1000.0,0.0002189,2]
[329728915,1718625047755,-1000.0,0.0002189,2]
[329728916,1718625047774,-1000.0,0.0002189,2]
[329728917,1718625047799,-691.0,0.0002189,2]
[329728918,1718625047811,-359.0,0.00021894,2]
[329728919,1718625047836,-1830.0,0.00021894,2]
[329728920,1718625047851,-1271.0,0.00021894,2]